Cogmind - Beta 16.1 @@@ ROGUE MODE // 2026.03.14 @ 11:16:44 Player: Ragnakor Result: Destroyed by Y-45 Defender with Heavy Assault Rifle Performance ------------- Evolutions (1) 500 Regions Visited (3) 600 Robots Destroyed (16) 80 Value Destroyed (437) 437 Prototype IDs (0) 0 Alien Tech Used (0) 0 Bonus (0) 0 TOTAL SCORE: 1617 Bonus ------- None Cogmind --------- Core Integrity 0/400 Matter 165/300 Energy 100/100 System Corruption 0% Temperature Cool (0) Movement Rolling (100) Location -9/Materials Parts ------- > --- POWER (1) -------- (None) > --- PROPULSION (4) --- Compact Wheel > --- UTILITY (2) ------ Medium Storage Unit > --- WEAPON (2) ------- (None) > --- INVENTORY (10) --- Flight Unit Flight Unit High-capacity Matter Pod (0) Sensor Array Seismic Detector Assault Rifle Mining Laser Peak State ------------ > --- POWER ------------ Ion Engine > --- PROPULSION ------- Aluminum Leg Aluminum Leg > --- UTILITY ---------- Small Storage Unit Tractor Beam > --- WEAPON ----------- Medium Laser Particle Gun > --- INVENTORY -------- Light Ion Engine Wheel Seismic Detector Small Laser Grenade Launcher [Rating: 8] Favorites ----------- Power Ion Engine Engine Ion Engine Propulsion Aluminum Leg Leg Aluminum Leg Wheel Compact Wheel Utility Medium Storage Unit Device Structural Scanner Storage Medium Storage Unit Processor Targeting Computer Weapon Assault Rifle Energy Gun Medium Laser Ballistic Gun Assault Rifle Launcher Grenade Launcher Build | -11 -10 -10 -9 ------- Run | Yrd Mat Min Mat Slots Evolved 2 | . . . 2 Power . | . . . . Propulsion 2 | . . . 2 Utility . | . . . . Weapon . | . . . . Parts Attached 25 | 7 15 . 3 Power 3 | 1 2 . . Engine 3 | 1 2 . . Core . | . . . . Reactor . | . . . . Propulsion 8 | 2 3 . 3 Treads . | . . . . Leg 5 | 2 3 . . Wheel 3 | . . . 3 Hover . | . . . . Flight . | . . . . Utility 6 | 2 4 . . Device 2 | 1 1 . . Storage 3 | 1 2 . . Processor 1 | . 1 . . Hackware . | . . . . Protection . | . . . . Artifact . | . . . . Weapon 8 | 2 6 . . Energy Gun 3 | 2 1 . . Energy Cannon . | . . . . Ballistic Gun 4 | . 4 . . Ballistic Cannon . | . . . . Launcher 1 | . 1 . . Special Weapon . | . . . . Impact Weapon . | . . . . Slashing Weapon . | . . . . Piercing Weapon . | . . . . Special Melee Weapon . | . . . . Unidentified Prototypes . | . . . . Parts Lost 19 | . 10 . 9 Power 3 | . 2 . 1 Propulsion 7 | . 2 . 5 Utility 2 | . 1 . 1 Weapon 7 | . 5 . 2 Highest Loss Streak 9 | . 6 . 9 To Critical Strikes . | . . . . Average Backups 7 | 1 7 8 7 Power . | . . . . Propulsion 2 | . 2 3 2 Utility 1 | . 1 3 3 Weapon 2 | . 2 2 2 Tool/Special . | . . . . Unused Backups 6 | . 2 . 4 Power . | . . . . Propulsion 3 | . 1 . 2 Utility 2 | . . . 2 Weapon 1 | . 1 . . Tool/Special . | . . . . Average Slot Usage (%) 86 | . 88 100 63 Engine 9 | . 9 14 6 Leg 25 | . 27 28 16 Device 3 | . 5 . . Storage 16 | . 17 14 11 Processor 5 | . 2 14 9 Energy Gun 7 | . 10 . . Ballistic Gun 16 | . 13 28 18 Peak Build Rating 8 | 7 8 7 8 Average Rating 6 | 4 6 7 5 On Entrance 5 | . 7 7 7 Avg Prop Armor Cover (%) . | . . . . Naked Turns . | . . . . Heaviest Build 24 | 15 24 16 16 Greatest Support 48 | 20 20 20 48 Greatest Overweight (x) 4 | . 3 . 4 Average Overweight (x) . | . . . . Largest Inventory Capacity 10 | 8 10 10 10 Average Capacity 9 | 5 9 10 10 Most Carried 10 | 3 10 8 8 Average Carried 7 | 1 7 8 7 Final Capacity 10 | 8 10 10 10 Final Carried 8 | 3 8 8 7 Class Distribution -------------------- 86% | Mutant 13% | Scavenger-Mutant Dominant Class ---------------- Mutant | -10/Materials Mutant | -10/Mines Mutant | -9/Materials Resources | -11 -10 -10 -9 ----------- Run | Yrd Mat Min Mat Matter Collected 346 | 270 76 . . Remotely 94 | 84 10 . . Salvage Created 562 | 84 478 . . Parts 33 | 3 30 . . Haulers Intercepted 2 | . 2 . . Recyclers Shooed 1 | . 1 . . Parts Field Recycled . | . . . . Retrieved Matter . | . . . . Parts Self-Destructed . | . . . . Prevented . | . . . . Parts Restored . | . . . . Kills | -11 -10 -10 -9 ------- Run | Yrd Mat Min Mat Combat Hostiles Destroyed 10 | . 10 . . Guns 4 | . 4 . . AOE 6 | . 6 . . Classes Destroyed 5 | 1 4 . . Builder 1 | . 1 . . Tunneler 1 | . 1 . . Hauler 2 | . 2 . . Recycler 2 | 1 1 . . Grunt 10 | . 10 . . Best Kill Streak 9 | 1 9 . . Combat Bots Only 6 | . 6 . . Max Kills in Single Turn 5 | 1 5 . . Gunslinging . | . . . . Exploded 3 | . 3 . . Melee . | . . . . Uniques/NPCs Destroyed . | . . . . Combat | -11 -10 -10 -9 -------- Run | Yrd Mat Min Mat Hostile Shots Fired 197 | . 107 . 90 Missed 48 | . 30 . 18 Hits 149 | . 77 . 72 Melee 1 | . . . 1 Projectile 148 | . 77 . 71 Critical Strikes 6 | . 2 . 4 Damage Taken 1981 | . 1027 . 954 Core 585 | . 178 . 407 Absorbed by Shields . | . . . . Core Remaining (%) 64 | 100 . 28 . Volleys Fired 32 | 4 27 . 1 Largest 2 | 2 2 . 2 Hottest 115 | 90 115 . 40 Shots Fired 60 | 8 50 . 2 Gun 56 | 8 46 . 2 Cannon . | . . . . Launcher 4 | . 4 . . Special . | . . . . Kinetic 27 | . 25 . 2 Thermal 20 | 4 16 . . Explosive 4 | . 4 . . Electromagnetic 9 | 4 5 . . Robot Hit Streak 9 | 2 9 . 2 Robot Miss Streak 3 | 3 3 . . Penetration Max . | . . . . Secondary Targets . | . . . . Shots Hit Robots 38 | 3 33 . 2 Core Hits 33 | 2 28 . 3 Critical Kills . | . . . . Critical Parts Destroyed . | . . . . Critical Strikes 2 | . 2 . . Burn 2 | . 2 . . Melee Attacks . | . . . . Impact . | . . . . Slashing . | . . . . Piercing . | . . . . Sneak Attacks . | . . . . Combat Hostiles . | . . . . Follow-up Attacks . | . . . . Damage Inflicted 1293 | 37 1212 . 44 Guns 433 | 37 376 . 20 Cannons . | . . . . Explosions 833 | . 833 . . Melee . | . . . . Ramming 27 | . 3 . 24 Kinetic 207 | . 187 . 20 Thermal 622 | 25 597 . . Explosive 355 | . 355 . . Electromagnetic 82 | 12 70 . . Impact . | . . . . Slashing . | . . . . Piercing . | . . . . Highest Corruption 2 | . 2 2 . Average Corruption 2 | . 2 2 . Corruption Purged . | . . . . Corruption Blocked . | . . . . Effects 7 | . 6 1 . Message Errors 2 | . 2 . . Matter Fused 3 | . 2 1 . Heat Flow Errors 1 | . 1 . . Data Loss (minor) 1 | . 1 . . Overload Shots . | . . . . Overflow Damage 214 | . 214 . . Projectiles . | . . . . Explosions 214 | . 214 . . Melee . | . . . . Knockbacks . | . . . . Impact . | . . . . Kinetic . | . . . . Secondary . | . . . . Self-Inflicted Damage 53 | . 53 . . Shots 1 | . 1 . . Rammed 1 | . . . 1 Targets Rammed 12 | . 1 . 11 Kicked 11 | . 1 . 10 Crushed . | . . . . Highest Temperature 207 | 102 207 . 6 Average Temperature 72 | 52 78 . 4 Received Heat Transfer 999 | . 579 . 420 Siege Activations . | . . . . Martial Activations . | . . . . Shielding Activations . | . . . . Robots Disrupted . | . . . . Combat Hostiles . | . . . . Robots Corrupted . | . . . . Combat Hostiles . | . . . . Parts Fried . | . . . . Impact Corruptions . | . . . . Robots Melted . | . . . . Combat Hostiles . | . . . . Parts Melted . | . . . . Heat Transferred 905 | 74 831 . . Parts Sabotaged . | . . . . Parts Stolen . | . . . . Parts Stripped . | . . . . Power Chain Reactions 1 | . 1 . . Alert | -11 -10 -10 -9 ------- Run | Yrd Mat Min Mat Maximum Alert Level . | . . . . Low Security (%) 100 | 100 100 100 100 Level 1 . | . . . . Level 2 . | . . . . Level 3 . | . . . . Level 4 . | . . . . Level 5 . | . . . . High Security . | . . . . Max Security . | . . . . Peak Influence 184 | 5 184 19 14 Initial 19 | . . 19 . Average 48 | . 72 4 2 Influence Increases 490 | 5 450 . 35 Destroy 0b10 Robot/C 200 | . 200 . . Destroy 0b10 Robot/NC 30 | 5 25 . . Destroy Leader 44 | . 44 . . Successful Hack 60 | . 25 . 35 Disable Machine 45 | . 45 . . Destroy Structure 36 | . 36 . . Lose Combat Pursuer 75 | . 75 . . Influence Decreases 490 | 5 399 51 35 Entered New Map 32 | . . 32 . Time Decay 273 | 5 220 19 29 Lost Part 106 | . 100 . 6 Purge Threat 79 | . 79 . . Squads Dispatched 3 | . 1 . 2 Investigation 2 | . 1 . 1 Extermination . | . . . . Reinforcement 1 | . . . 1 Assault . | . . . . Garrison . | . . . . Intercept . | . . . . Searches Triggered . | . . . . Construction Impeded . | . . . . Haulers Reinforced . | . . . . Active Scanning Responses . | . . . . Cargo Convoy Interrupts . | . . . . Stealth | -11 -10 -10 -9 --------- Run | Yrd Mat Min Mat Distress Signals . | . . . . Communications Jammed . | . . . . Distress Signals . | . . . . Times Spotted 34 | . 19 . 15 Peak Tracking Total 13 | . 8 . 13 Tactical Retreats 3 | . 3 . . Traps | -11 -10 -10 -9 ------- Run | Yrd Mat Min Mat Traps Triggered 2 | . 2 . . Indirectly . | . . . . Trap Hack Attempts . | . . . . Triggered . | . . . . Disarmed . | . . . . Reprogrammed . | . . . . Reused . | . . . . Traps Extracted . | . . . . Installed . | . . . . Triggered . | . . . . Machines | -11 -10 -10 -9 ---------- Run | Yrd Mat Min Mat Machines Disabled 5 | . 5 . . Max in Single Turn 2 | . 2 . . Machines Repaired . | . . . . Machines Dismantled . | . . . . Machines Sabotaged . | . . . . Overloaded Fab Kills . | . . . . Hacking | -11 -10 -10 -9 --------- Run | Yrd Mat Min Mat Machines Accessed 10 | . 5 . 5 Terminals 9 | . 5 . 4 Fabricators . | . . . . Repair Stations 1 | . . . 1 Recycling Units . | . . . . Scanalyzers . | . . . . Garrison Access . | . . . . Total Hacks 38 | . 22 . 16 Successful 23 | . 15 . 8 Failed 15 | . 7 . 8 Catastrophic 3 | . 1 . 2 Database Lockouts . | . . . . Manual 33 | . 17 . 16 Terminals 37 | . 22 . 15 Fabricators . | . . . . Repair Stations 1 | . . . 1 Recycling Units . | . . . . Scanalyzers . | . . . . Garrison Access . | . . . . Terminal Hacks 5 | . 5 . . Terminal Index 1 | . 1 . . Alert Level 1 | . 1 . . Unreport Threat 2 | . 2 . . Maintenance Status 1 | . 1 . . Fabricator Hacks . | . . . . Repair Station Hacks . | . . . . Recycling Unit Hacks . | . . . . Scanalyzer . | . . . . Garrison Access Hacks . | . . . . Unauthorized Hacks 18 | . 10 . 8 Terminals 17 | . 10 . 7 Track 3 | . 3 . . Assimilate 5 | . 3 . 2 Botnet 6 | . 3 . 3 Operators 3 | . 1 . 2 Fabricators . | . . . . Repair Stations 1 | . . . 1 Mechanics 1 | . . . 1 Recycling Units . | . . . . Scanalyzers . | . . . . Garrison Access . | . . . . Data Cores Recovered . | . . . . Used . | . . . . Hacking Detections 9 | . 5 . 4 Full Trace Events 2 | . . . 2 Feedback Events . | . . . . Feedback Blocked . | . . . . Robot Schematics Acquired . | . . . . Robots Built . | . . . . Authchips . | . . . . Time . | . . . . Total Robot Build Rating . | . . . . Part Schematics Acquired . | . . . . Parts Built . | . . . . Authchips . | . . . . Time . | . . . . Total Part Build Rating . | . . . . Part Studies Acquired . | . . . . Parts Repaired . | . . . . Time . | . . . . Parts Recycled . | . . . . Recycled Matter . | . . . . Retrieved Matter . | . . . . Retrieved Components . | . . . . Parts Scanalyzed . | . . . . Part Schematics Acquired . | . . . . Parts Damaged . | . . . . Bothacking | -11 -10 -10 -9 ------------ Run | Yrd Mat Min Mat Used RIF Installer . | . . . . Robots Hacked . | . . . . Non-combat . | . . . . Combat . | . . . . Robot Hacks Applied . | . . . . Relay Couplers Released . | . . . . Fabnet Peak Effective % . | . . . . Robots Rewired . | . . . . Allies Hacked . | . . . . Hacks Repelled . | . . . . Allies | -11 -10 -10 -9 -------- Run | Yrd Mat Min Mat Total Allies . | . . . . Largest Group . | . . . . Highest-Rated Group . | . . . . Highest-Rated Ally . | . . . . Total Orders . | . . . . Ally Attacks . | . . . . Total Damage . | . . . . Kills . | . . . . Allies Corrupted . | . . . . Allies Melted . | . . . . Intel | -11 -10 -10 -9 ------- Run | Yrd Mat Min Mat Active Infowar (turns) 164 | . 164 . . Structural 164 | . 164 . . Robot Analysis Total . | . . . . Derelict Logs Recovered . | . . . . Drone Launches . | . . . . Drone Recoveries . | . . . . Exploration | -11 -10 -10 -9 ------------- Run | Yrd Mat Min Mat Turns Passed 1057 | 85 695 119 158 Spaces Moved 707 | 53 455 97 102 Core 22 | 5 6 . 11 Treads . | . . . . Legs 673 | 48 449 97 79 Wheels 12 | . . . 12 Hover . | . . . . Flight . | . . . . Fastest Speed 50 | 50 120 120 100 Average Speed 124 | 113 126 120 127 Slowest Speed 260 | 120 260 120 250 Overloaded Moves . | . . . . Propulsion Burnouts . | . . . . Robots Hopped . | . . . . Potential Cave-ins . | . . . . Cave-ins Triggered . | . . . . Exploration Rate (%) 26 | 3 64 24 16 Regions Visited 3 Branch Regions 1 Pre-discovered Areas . | . . . . Known Exits Taken . | . . . . Unknown Exits Taken 3 | 1 1 1 . Scrap Searched . | . . . . Spaces Dug . | . . . . Terrain Destroyed 36 | . 36 . . Melee . | . . . . Projectile . | . . . . AOE 36 | . 36 . . Terrain Rammed . | . . . . Walls Destroyed . | . . . . Machines Disabled . | . . . . Actions | -11 -10 -10 -9 --------- Run | Yrd Mat Min Mat Total 808 | 66 521 99 122 Wait 20 | . 13 3 4 Move 704 | 52 454 96 102 Hop . | . . . . Pick Up 9 | 3 6 . . Fast Attach 18 | 7 8 . 3 Attach 4 | . 3 . 1 Detach 1 | . 1 . . Swap 6 | . 6 . . Drop 2 | . 2 . . Fire 32 | 4 27 . 1 Melee . | . . . . Ram 1 | . . . 1 Kick 11 | . 1 . 10 Crush . | . . . . Escape Stasis . | . . . . Rewire . | . . . . Trap . | . . . . Miscellaneous . | . . . . Route ------- -11/Scrapyard -10/Materials (discovered 4 exits: *Mat x3 / [*Min]) -10/Mines -9/Materials History --------- Turn | Location | Event 5 | -11/Scrapyard | Discovered new exit (range 14) 86 | -11/Scrapyard | Entered Materials 311 | -10/Materials | Build established: Mutant 316 | -10/Materials | Discovered new exit (range 5) 328 | -10/Materials | Discovered new exit (range 15) 338 | -10/Materials | Core integrity fell below 50% 416 | -10/Materials | Lost 6 parts (1p2n1u2w) 465 | -10/Materials | Discovered new exit (range 4) 538 | -10/Materials | Discovered new exit (range 7) 781 | -10/Materials | Entered Mines 884 | -10/Mines | Discovered new exit (range 8) 900 | -10/Mines | Entered Materials 900 | -9/Materials | Evolved 2 slots: Propulsion x2 1037 | -9/Materials | Core integrity fell below 50% 1043 | -9/Materials | Core integrity fell below 20% 1058 | -9/Materials | Destroyed by Y-45 Defender with Heavy Assault Rifle Last Messages --------------- 01016_ Assault Rifle broken. 01016_ Destabilizing: Short circuit. 01022_ Broken Assault Rifle destroyed. 01028_ Connecting with Terminal... >>Trojan(Botnet) Trojan loaded successfully. Testing... Terminal linked with 2 systems. Awaiting botnet instructions. 01030_ Critical hit (Burn: +37). 01032_ M-13 Machinist repairs G-34 Mercenary. 01035_ Lgt. Assault Rifle destroyed. 01036_ G-34 Mercenary destroyed. 01036_ Targeting Computer destroyed. 01039_ Critical hit (Burn: +37). 01042_ Acquired Com. Wheel. 01044_ K-01 Serf collects debris. 01044_ Acquired Com. Wheel. 01048_ K-01 Serf collects debris. 01049_ Com. Wheel destroyed. Map ----- +----------------------------------------------------+ | ?????????????????????????????????????????????????? | | ?????????????????????????????????????????????????? | | ?????????????????????????????????????????????????? | | ?????????????????????????????????????????????????? | | ?????????????????????????????????????????????????? | | ?????????????????????????????????????????????????? | | ?????????????????????????????????????????????????? | | ?????????????????????????????????????????????????? | | ?????????????????????????????????????????????????? | | ?????????????????????????????????????????????????? | | ?????????????????????????????????????????????????? | | ?????????????????????????????????????????????????? | | ?????????????????????????????????????????????????? | | ?????????????????????????????????????????????????? | | ?????????????????????????????????????????????????? | | ?????????????????????????????????????????????????? | | ?????????????????????????????????????????????????? | | ????????????????????????????????????????????? #? | | ????????????????????????????????##??????????# #? | | ???????????????????????######### ##?????????# #? | | ???????????????????????# bY == #?????????# o #? | | ????????????????? ????# """g == ########### #? | | ????????????????? ???# """g = ## + #? | | ?????????????????? ??#m """g ## """" # #? | | ???????????????????# ?# !## """" # #? | | ???????????????????# ##@####/##### """" # #? | | ???????????????????# Y #???# # #? | | ???????????????????# #???# """# #? | | ???????????????????# """ T #???# = R"# ^ #? | | ???????????????????# """ #???# """# ^#? | | ???????????????????# """ =%#???# # #? | | ???????????????????# """ k #???#####/#### ## | | ?????????????????? + ###### | | ???????????????" # | | ???????????????????# #####+########## | | ????????????????????????? ?????????############## | | ????????????????????????[ ??????????????????????? | | ??????????????????????? ???????????????######### | | ??????????????????????? ???????????????# | | ?????????????????????? ""????????????????# ||| | | ?????????????????????# "R????????????????# ||| | | ?????????????????????#???????????????????# || | | ?????????????????????????????????????????######### | | ????????????????????????????????????????????###### | | ????????????????????????????????????????????# ! | | ????????????????????????????????????????????# | | ????????????????????????????????????????????# " " | | ????????????????????????????????????????????# "T" | | ????????????????????????????????????????????# """ | | ????????????????????????????????????????????# | +----------------------------------------------------+ Best States ------------- Heat Dissipation 28 Energy Generation 10 Energy Capacity 250 Matter Stores 300 Matter Capacity 500 Sight Range 16 Terrain Scan Density 10 Evasion (%) 55 Targeting Accuracy 5 Item Schematics ----------------- None Robot Schematics ------------------ None Fabricated ------------ Nothing Repaired ---------- Nothing Studied --------- None Alien Tech Used ----------------- None Achievements -------------- None Challenges ------------ None Game ------ Seed HeavyTechDoublenader Manual? 0 Play Time 00:14:34 Cumulative 24.6 hours Start 2026.03.14 @ 11:05:04 End 2026.03.14 @ 11:16:44 Sessions 1 Manual Loads 0 Difficulty Rogue Special Mode None Game No. 47 Rogue 47 Adventurer 0 Explorer 0 Win Type - Total 0 Types 0/0/0/0/0/0/0/0/0/0 Lore% 23 Gallery% 22 Achievement% 20 Wizard Run 0 Options --------- Layout 1 ASCII 0 Keyboard 0 Movement Numpad Keybinds 0 Fullscreen 1 Font 24/Smallcaps Map View 50x35 Zoom Use 0% Tactical HUD 1 Map Filters NONE Filters NONE Steam 1 RUN: 0dd89114-b177-49c9-8aed-27486fa385d4